[Event "29th CRO-chT Junior 2020"]
[Site "Cakovec"]
[Date "2020.07.17"]
[Round "8.9"]
[White "Muha, Miljenko"]
[Black "Levacic, Matej"]
[Result "1-0"]
[ECO "E42"]
[WhiteElo "2310"]
[BlackElo "2040"]
[Annotator "ChessBase"]
[PlyCount "97"]
[EventDate "2020.07.14"]
[EventType "team-tourn"]
[EventCountry "CRO"]
[SourceTitle "playchess.com"]
[Source "ChessBase"]
[SourceQuality "1"]
[TimeControl "5400+30"]

1. d4 {[%emt 0:00:30]} Nf6 {[%emt 0:00:30]} 2. c4 {[%emt 0:00:00]} e6 {[%emt 0:00:30]} 3. Nc3 {[%emt 0:00:00]} Bb4 {[%emt 0:00:00]} 4. e3 {[%emt 0:00:00]} b6 {[%emt 0:00:00]} 5. Nge2 {[%emt 0:01:00]} c5 {[%emt 0:00:30]} 6. a3 {[%emt 0:00:30]} Ba5 {[%emt 0:00:00]} 7. Rb1 {[%emt 0:01:30]} Na6 {[%emt 0:00:00]} 8. g3 {[%emt 0:06:30]} Bb7 {[%emt 0:01:30]} 9. d5 {[%emt 0:00:30]} b5 {[%emt 0:00:00]} 10. Bg2 {[%emt 0:00:30]} bxc4 {[%emt 0:00:00]} 11. O-O {[%emt 0:01:30]} O-O {[%emt 0:00:30]} 12. e4 {[%emt 0:01:30]} exd5 {[%emt 0:00:30]} 13. exd5 {[%emt 0:03:30]} d6 {[%emt 0:09:30]} 14. Qa4 {[%emt 0:01:30]} Bxc3 {[%emt 0:08:30]} 15. Nxc3 {[%emt 0:01:30]} Nc7 {[%emt 0:01:30]} 16. Bg5 {[%emt 0:09:30]} h6 {[%emt 0:09:30]} 17. Bxf6 {[%emt 0:00:30]} Qxf6 {[%emt 0:00:30]} 18. Rfe1 {[%emt 0:01:30]} Qd8 {[%emt 0:08:30]} 19. Qxc4 {[%emt 0:02:30]} Re8 {[%emt 0:01:30]} 20. Rxe8+ {[%emt 0:03:30]} Qxe8 {[%emt 0:01:30]} 21. b4 {[%emt 0:02:30]} Ba6 {[%emt 0:14:30]} 22. b5 {[%emt 0:05:30]} Bb7 {[%emt 0:00:30]} 23. Qf4 {[%emt 0:04:30]} Qd7 {[%emt 0:04:30]} 24. a4 {[%emt 0:02:30]} Re8 {[%emt 0:01:30]} 25. h4 {[%emt 0:08:30]} Re5 {[%emt 0:01:30]} 26. a5 {[%emt 0:01:30]} a6 {[%emt 0:08:30]} 27. bxa6 {[%emt 0:07:30]} Nxa6 {[%emt 0:01:30]} 28. Rb6 {[%emt 0:00:30]} Nb4 {[%emt 0:03:30]} 29. Kh2 {[%emt 0:05:30]} Bc8 {[%emt 0:05:25]} 30. Qc4 {[%emt 0:08:30]} Nc2 {[%emt 0:05:15]} 31. Qb5 {[%emt 0:02:02]} Qf5 {[%emt 0:01:53]} 32. Rb8 {[%emt 0:01:57]} Ne1 {[%emt 0:01:51]} 33. Qb1 {[%emt 0:01:55]} Qg4 {[%emt 0:01:38]} 34. Be4 {[%emt 0:07:41]} g5 {[%emt 0:03:29]} 35. Qxe1 {[%emt 0:04:44]} gxh4 {[%emt 0:01:16]} 36. Rxc8+ {[%emt 0:00:24]} Qxc8 {[%emt 0:00:05]} 37. f4 {[%emt 0:00:49]} Re8 {[%emt 0:01:02]} 38. gxh4 {[%emt 0:00:17]} Qa6 {[%emt 0:01:53]} 39. Qg3+ {[%emt 0:01:03]} Kf8 {[%emt 0:00:29]} 40. f5 {[%emt 0:00:46]} Qf1 {[%emt 0:01:50]} 41. a6 {[%emt 0:01:12]} Ke7 {[%emt 0:01:59]} 42. a7 {[%emt 0:00:51]} Ra8 {[%emt 0:00:20]} 43. Qe3 {[%emt 0:00:53]} Kd7 {[%emt 0:00:53]} 44. Bg2 {[%emt 0:00:08]} Qc4 {[%emt 0:00:22]} 45. f6 {[%emt 0:00:25]} Qxh4+ {[%emt 0:01:46]} 46. Bh3+ {[%emt 0:00:09]} Kc7 {[%emt 0:00:00]} 47. Qe7+ {[%emt 0:00:10]} Kb6 {[%emt 0:00:00]} 48. Qxd6+ {[%emt 0:00:20]} Kb7 {[%emt 0:00:00]} 49. Qc6+ {[%emt 0:00:00]} 1-0

[Event "29th CRO-chT Junior 2020"]
[Site "Cakovec"]
[Date "2020.07.17"]
[Round "8.15"]
[White "Mandaric, Fran"]
[Black "Mahecic, Lovre"]
[Result "0-1"]
[ECO "C50"]
[WhiteElo "1671"]
[BlackElo "1949"]
[Annotator "ChessBase"]
[PlyCount "98"]
[EventDate "2020.07.14"]
[EventType "team-tourn"]
[EventCountry "CRO"]
[SourceTitle "playchess.com"]
[Source "ChessBase"]
[SourceQuality "1"]
[TimeControl "5400+30"]

1. e4 {[%emt 0:00:30]} e5 {[%emt 0:00:30]} 2. Nf3 {[%emt 0:00:00]} Nc6 {[%emt 0:00:00]} 3. Bc4 {[%emt 0:00:00]} Bc5 {[%emt 0:00:00]} 4. O-O {[%emt 0:00:00]} Nf6 {[%emt 0:00:00]} 5. d4 {[%emt 0:00:00]} Bxd4 {[%emt 0:00:00]} 6. Nxd4 {[%emt 0:00:00]} Nxd4 {[%emt 0:00:00]} 7. f4 {[%emt 0:00:00]} d6 {[%emt 0:00:00]} 8. fxe5 {[%emt 0:00:30]} dxe5 {[%emt 0:00:30]} 9. Bg5 {[%emt 0:00:00]} Be6 {[%emt 0:00:00]} 10. Na3 {[%emt 0:00:00]} Qe7 {[%emt 0:00:00]} 11. Kh1 {[%emt 0:05:30]} O-O-O {[%emt 0:01:30]} 12. Bxf6 {[%emt 0:01:30]} gxf6 {[%emt 0:00:30]} 13. c3 {[%emt 0:00:30]} Bxc4 {[%emt 0:07:30]} 14. Nxc4 {[%emt 0:00:30]} Ne6 {[%emt 0:00:30]} 15. Qf3 {[%emt 0:00:30]} Ng5 {[%emt 0:16:30]} 16. Qxf6 {[%emt 0:06:30]} Qxf6 {[%emt 0:00:30]} 17. Rxf6 {[%emt 0:00:00]} Nxe4 {[%emt 0:00:00]} 18. Rxf7 {[%emt 0:00:00]} Nd6 {[%emt 0:01:00]} 19. Nxd6+ {[%emt 0:03:30]} Rxd6 {[%emt 0:00:30]} 20. Re7 {[%emt 0:05:30]} Rd2 {[%emt 0:00:30]} 21. Rxe5 {[%emt 0:09:30]} Rxb2 {[%emt 0:00:30]} 22. h3 {[%emt 0:01:30]} Rg8 {[%emt 0:03:30]} 23. g4 {[%emt 0:05:30]} b6 {[%emt 0:06:30]} 24. Re7 {[%emt 0:05:30]} h5 {[%emt 0:03:30]} 25. gxh5 {[%emt 0:01:30]} Rg3 {[%emt 0:00:30]} 26. h4 {[%emt 0:05:30]} Rh3+ {[%emt 0:00:30]} 27. Kg1 {[%emt 0:00:00]} Rxh4 {[%emt 0:00:30]} 28. Rh7 {[%emt 0:03:00]} Rbh2 {[%emt 0:03:30]} 29. Rf1 {[%emt 0:02:30]} Rxh5 {[%emt 0:00:30]} 30. Rxh5 {[%emt 0:00:30]} Rxh5 {[%emt 0:00:30]} 31. Rf2 {[%emt 0:00:30]} Kb7 {[%emt 0:00:00]} 32. Kf1 {[%emt 0:00:30]} Re5 {[%emt 0:00:00]} 33. Re2 {[%emt 0:10:30]} Rxe2 {[%emt 0:08:30]} 34. Kxe2 {[%emt 0:00:30]} Kc6 {[%emt 0:00:00]} 35. Kd3 {[%emt 0:01:30]} Kb5 {[%emt 0:01:00]} 36. Kc2 {[%emt 0:01:30]} Kc4 {[%emt 0:00:00]} 37. Kb2 {[%emt 0:01:30]} Kd3 {[%emt 0:01:00]} 38. Kb3 {[%emt 0:08:30]} c5 {[%emt 0:00:30]} 39. c4 {[%emt 0:01:30]} Kd4 {[%emt 0:00:30]} 40. a3 {[%emt 0:00:30]} Kd3 {[%emt 0:01:30]} 41. Ka4 {[%emt 0:01:30]} a6 {[%emt 0:00:30]} 42. Kb3 {[%emt 0:00:00]} b5 {[%emt 0:00:30]} 43. cxb5 {[%emt 0:01:00]} axb5 {[%emt 0:00:00]} 44. a4 {[%emt 0:00:30]} bxa4+ {[%emt 0:00:00]} 45. Kb2 {[%emt 0:00:30]} Kd2 {[%emt 0:00:30]} 46. Kb1 {[%emt 0:00:30]} c4 {[%emt 0:00:30]} 47. Kb2 {[%emt 0:00:30]} c3+ {[%emt 0:00:00]} 48. Kb1 {[%emt 0:00:00]} c2+ {[%emt 0:00:00]} 49. Ka2 {[%emt 0:00:00]} Kc3 {[%emt 0:00:30]} 0-1

[Event "29th CRO-chT Junior 2020"]
[Site "Cakovec"]
[Date "2020.07.17"]
[Round "8.17"]
[White "Topalic, Fran"]
[Black "Cotic, Borna"]
[Result "0-1"]
[ECO "B44"]
[WhiteElo "1741"]
[BlackElo "2049"]
[Annotator "ChessBase"]
[PlyCount "94"]
[EventDate "2020.07.14"]
[EventType "team-tourn"]
[EventCountry "CRO"]
[SourceTitle "playchess.com"]
[Source "ChessBase"]
[SourceQuality "1"]
[TimeControl "5400+30"]

1. e4 {[%emt 0:00:30]} c5 {[%emt 0:02:30]} 2. Nf3 {[%emt 0:00:00]} e6 {[%emt 0:00:30]} 3. d4 {[%emt 0:00:00]} cxd4 {[%emt 0:00:30]} 4. Nxd4 {[%emt 0:00:00]} Nc6 {[%emt 0:00:00]} 5. c4 {[%emt 0:01:00]} Nf6 {[%emt 0:00:00]} 6. Nc3 {[%emt 0:00:00]} Bb4 {[%emt 0:00:30]} 7. f3 {[%emt 0:01:00]} d5 {[%emt 0:00:30]} 8. Nxc6 {[%emt 0:10:30]} bxc6 {[%emt 0:00:00]} 9. e5 {[%emt 0:00:30]} Nd7 {[%emt 0:03:00]} 10. Qa4 {[%emt 0:00:30]} Qa5 {[%emt 0:12:30]} 11. Bd2 {[%emt 0:03:30]} Qxa4 {[%emt 0:00:30]} 12. Nxa4 {[%emt 0:00:30]} Bxd2+ {[%emt 0:00:30]} 13. Kxd2 {[%emt 0:00:00]} Nxe5 {[%emt 0:00:00]} 14. cxd5 {[%emt 0:00:00]} cxd5 {[%emt 0:05:00]} 15. f4 {[%emt 0:01:30]} Ng6 {[%emt 0:01:30]} 16. g3 {[%emt 0:00:30]} Bd7 {[%emt 0:03:30]} 17. Nc5 {[%emt 0:00:30]} Ke7 {[%emt 0:01:30]} 18. Bd3 {[%emt 0:02:30]} Rhc8 {[%emt 0:02:30]} 19. b4 {[%emt 0:01:30]} Nf8 {[%emt 0:05:30]} 20. Rhe1 {[%emt 0:02:30]} a5 {[%emt 0:03:30]} 21. a3 {[%emt 0:00:30]} Rcb8 {[%emt 0:05:30]} 22. Kc3 {[%emt 0:03:30]} Bb5 {[%emt 0:02:30]} 23. Reb1 {[%emt 0:02:30]} Bxd3 {[%emt 0:03:30]} 24. Nxd3 {[%emt 0:00:30]} axb4+ {[%emt 0:05:30]} 25. axb4 {[%emt 0:00:30]} Nd7 {[%emt 0:00:30]} 26. Nc5 {[%emt 0:04:30]} Nxc5 {[%emt 0:14:30]} 27. bxc5 {[%emt 0:00:30]} Rxa1 {[%emt 0:00:30]} 28. Rxa1 {[%emt 0:00:00]} Rb5 {[%emt 0:02:30]} 29. Ra7+ {[%emt 0:03:00]} Kf6 {[%emt 0:00:30]} 30. Rc7 {[%emt 0:00:30]} g5 {[%emt 0:01:30]} 31. fxg5+ {[%emt 0:03:30]} Kxg5 {[%emt 0:00:30]} 32. Rxf7 {[%emt 0:00:30]} Rxc5+ {[%emt 0:00:30]} 33. Kd3 {[%emt 0:00:30]} h6 {[%emt 0:01:30]} 34. h4+ {[%emt 0:01:30]} Kg4 {[%emt 0:03:55]} 35. Rg7+ {[%emt 0:00:00]} Kf3 {[%emt 0:01:51]} 36. Rg6 {[%emt 0:00:00]} e5 {[%emt 0:00:50]} 37. Rxh6 {[%emt 0:00:30]} Kxg3 {[%emt 0:00:18]} 38. h5 {[%emt 0:00:30]} Kf4 {[%emt 0:02:06]} 39. Rh8 {[%emt 0:00:00]} Ra5 {[%emt 0:00:20]} 40. h6 {[%emt 0:02:00]} Ra3+ {[%emt 0:00:24]} 41. Kd2 {[%emt 0:00:30]} Rh3 {[%emt 0:00:24]} 42. h7 {[%emt 0:00:30]} Ke4 {[%emt 0:00:00]} 43. Kc2 {[%emt 0:01:30]} d4 {[%emt 0:00:11]} 44. Kd2 {[%emt 0:00:30]} Rh2+ {[%emt 0:00:37]} 45. Kc1 {[%emt 0:01:30]} d3 {[%emt 0:00:21]} 46. Kd1 {[%emt 0:00:30]} Ke3 {[%emt 0:00:32]} 47. Kc1 {[%emt 0:00:30]} e4 {[%emt 0:00:09]} 0-1

[Event "29th CRO-chT Junior 2020"]
[Site "Cakovec"]
[Date "2020.07.17"]
[Round "8.18"]
[White "Simunic, Krunoslav"]
[Black "Matota, Dominik"]
[Result "1-0"]
[ECO "E73"]
[WhiteElo "2047"]
[BlackElo "1807"]
[Annotator "ChessBase"]
[PlyCount "95"]
[EventDate "2020.07.14"]
[EventType "team-tourn"]
[EventCountry "CRO"]
[SourceTitle "playchess.com"]
[Source "ChessBase"]
[SourceQuality "1"]
[TimeControl "5400+30"]

1. d4 {[%emt 0:02:30]} Nf6 {[%emt 0:00:30]} 2. c4 {[%emt 0:00:30]} g6 {[%emt 0:00:00]} 3. Nc3 {[%emt 0:01:30]} Bg7 {[%emt 0:00:00]} 4. e4 {[%emt 0:00:00]} d6 {[%emt 0:00:30]} 5. Be2 {[%emt 0:00:00]} O-O {[%emt 0:00:00]} 6. Bg5 {[%emt 0:00:30]} Nbd7 {[%emt 0:00:00]} 7. h3 {[%emt 0:00:30]} e5 {[%emt 0:02:30]} 8. d5 {[%emt 0:01:30]} a6 {[%emt 0:04:30]} 9. Nf3 {[%emt 0:01:30]} Qe8 {[%emt 0:00:30]} 10. O-O {[%emt 0:05:30]} Nh5 {[%emt 0:00:30]} 11. Ne1 {[%emt 0:12:30]} Nf4 {[%emt 0:02:30]} 12. Nd3 {[%emt 0:01:30]} Nxe2+ {[%emt 0:03:30]} 13. Qxe2 {[%emt 0:00:30]} f5 {[%emt 0:00:30]} 14. g3 {[%emt 0:13:30]} fxe4 {[%emt 0:05:30]} 15. Qxe4 {[%emt 0:00:30]} h6 {[%emt 0:04:30]} 16. Bd2 {[%emt 0:01:30]} Nf6 {[%emt 0:00:30]} 17. Qg2 {[%emt 0:00:30]} Bf5 {[%emt 0:00:30]} 18. Ne1 {[%emt 0:04:30]} b5 {[%emt 0:22:30]} 19. g4 {[%emt 0:05:30]} Bd7 {[%emt 0:00:30]} 20. b3 {[%emt 0:02:30]} g5 {[%emt 0:02:30]} 21. Nc2 {[%emt 0:13:30]} Qg6 {[%emt 0:09:30]} 22. Ne3 {[%emt 0:02:30]} b4 {[%emt 0:02:30]} 23. Na4 {[%emt 0:06:30]} Bxa4 {[%emt 0:02:30]} 24. bxa4 {[%emt 0:00:00]} Rab8 {[%emt 0:00:30]} 25. Nf5 {[%emt 0:02:00]} Rfe8 {[%emt 0:04:30]} 26. a5 {[%emt 0:01:30]} Nh5 {[%emt 0:04:30]} 27. Rab1 {[%emt 0:03:00]} e4 {[%emt 0:02:30]} 28. Rfe1 {[%emt 0:01:38]} Nf6 {[%emt 0:06:26]} 29. Rxb4 {[%emt 0:00:22]} Kh8 {[%emt 0:06:09]} 30. Reb1 {[%emt 0:01:41]} Rxb4 {[%emt 0:01:46]} 31. Rxb4 {[%emt 0:00:05]} Qf7 {[%emt 0:00:31]} 32. Bc3 {[%emt 0:05:14]} Kh7 {[%emt 0:02:08]} 33. Rb7 {[%emt 0:01:14]} Qd7 {[%emt 0:01:15]} 34. Qg3 {[%emt 0:02:27]} Rd8 {[%emt 0:03:47]} 35. c5 {[%emt 0:02:09]} Qc8 {[%emt 0:02:46]} 36. c6 {[%emt 0:00:45]} Rf8 {[%emt 0:02:37]} 37. Nxg7 {[%emt 0:00:51]} Kxg7 {[%emt 0:00:01]} 38. Qxd6 {[%emt 0:00:58]} Kg6 {[%emt 0:01:57]} 39. Rxc7 {[%emt 0:00:59]} Qb8 {[%emt 0:00:07]} 40. Qe7 {[%emt 0:00:28]} Qb1+ {[%emt 0:01:52]} 41. Kg2 {[%emt 0:00:00]} Nxg4 {[%emt 0:00:00]} 42. Qg7+ {[%emt 0:01:05]} Kh5 {[%emt 0:00:18]} 43. hxg4+ {[%emt 0:00:13]} Kxg4 {[%emt 0:00:36]} 44. Qxf8 {[%emt 0:00:07]} Qd3 {[%emt 0:00:01]} 45. Qc8+ {[%emt 0:01:43]} Kh4 {[%emt 0:00:21]} 46. Qf5 {[%emt 0:00:26]} Qxc3 {[%emt 0:00:40]} 47. Qxe4+ {[%emt 0:00:08]} g4 {[%emt 0:00:03]} 48. Qe3 {[%emt 0:01:12]} 1-0

[Event "29th CRO-chT Junior 2020"]
[Site "Cakovec"]
[Date "2020.07.17"]
[Round "8.19"]
[White "Borzan, Matej"]
[Black "Baric, Marko"]
[Result "0-1"]
[ECO "E34"]
[WhiteElo "1746"]
[BlackElo "1831"]
[Annotator "NA"]
[PlyCount "118"]
[EventDate "2020.07.14"]
[EventType "team-tourn"]
[EventCountry "CRO"]
[SourceTitle "playchess.com"]
[Source "ChessBase"]
[SourceQuality "1"]
[TimeControl "5400+30"]

1. d4 {[%emt 0:00:30]} Nf6 {[%emt 0:02:30]} 2. c4 {[%emt 0:00:00]} e6 {[%emt 0:00:00]} 3. Nc3 {[%emt 0:00:00]} Bb4 {[%emt 0:00:00]} 4. Qc2 {[%emt 0:00:00]} d5 {[%emt 0:00:30]} 5. e3 {[%emt 0:00:00]} c5 {[%emt 0:02:30]} 6. a3 {[%emt 0:00:30] E34: Nimzo-Indian: Classical: 4...d5.} Bxc3+ {[%emt 0:01:30]} 7. bxc3 {[%emt 0:00:00]} dxc4 {[%emt 0:02:30]} 8. Bxc4 {[%emt 0:00:00]} Nbd7 {[%emt 0:00:30]} 9. Nf3 {[%emt 0:01:30]} Qa5 {[%emt 0:05:30]} 10. Bd2 {[%emt 0:00:30] [#]} O-O $146 {[%emt 0:00:30]} ({Predecessor:} 10... b5 11. Be2 c4 12. O-O Bb7 13. a4 Nb6 14. axb5 Qxb5 15. Ne5 O-O 16. Rfb1 Qd5 {1-0 (49) Hamedi Nia,V (1914)-Hakimifard,R (2111) Teheran 2017}) 11. O-O {[%emt 0:02:30]} Nb6 {[%emt 0:10:30]} 12. Be2 {[%emt 0:03:30]} c4 {[%emt 0:08:30]} 13. Ne5 {[%emt 0:03:30]} Bd7 {[%emt 0:12:30]} 14. Nxc4 {[%emt 0:02:30]} Nxc4 {[%emt 0:00:30]} 15. Bxc4 {[%emt 0:00:00]} Rac8 {[%emt 0:00:30]} 16. Bd3 {[%emt 0:01:00]} Ba4 {[%emt 0:02:30]} 17. Qb2 {[%emt 0:00:30]} Bc6 {[%emt 0:02:30]} 18. Rfc1 {[%emt 0:04:30]} Rfd8 {[%emt 0:00:30]} 19. f3 {[%emt 0:09:30]} Qh5 {[%emt 0:03:30]} 20. e4 {[%emt 0:05:30]} Nd7 {[%emt 0:11:30]} 21. c4 {[%emt 0:04:30]} Nc5 {[%emt 0:01:30]} 22. Bc2 {[%emt 0:04:30]} e5 {[%emt 0:10:30]} 23. d5 {[%emt 0:03:30]} Bd7 {[%emt 0:00:51]} 24. Be3 {[%emt 0:00:30]} b6 {[%emt 0:00:10]} 25. Bd1 {[%emt 0:00:30]} Nd3 {[%emt 0:02:10]} 26. Qc3 {[%emt 0:00:30]} Nxc1 {[%emt 0:00:00]} 27. Rxc1 {[%emt 0:00:30]} Re8 {[%emt 0:03:30]} 28. a4 {[%emt 0:02:30]} Qg6 {[%emt 0:00:35]} 29. Qb4 {[%emt 0:00:00]} f5 {[%emt 0:03:09]} 30. Bc2 {[%emt 0:02:00]} fxe4 {[%emt 0:02:00]} 31. fxe4 {[%emt 0:00:00]} Bh3 {[%emt 0:01:32]} 32. g3 {[%emt 0:01:00]} Qg4 {[%emt 0:00:44]} 33. Bd3 {[%emt 0:00:30]} Rf8 {[%emt 0:03:23]} 34. Qd2 {[%emt 0:01:30]} Rf7 {[%emt 0:01:10]} 35. c5 {[%emt 0:00:30] [#]} bxc5 $1 {[%emt 0:00:51]} 36. d6 {[%emt 0:00:30]} Kh8 {[%emt 0:02:02]} 37. Bb5 $2 {[%emt 0:01:30]} (37. Bxc5 $17 h6 38. Qe1) 37... Qxe4 {[%emt 0:03:40]} 38. d7 {[%emt 0:01:30] [#]} Bxd7 $1 {[%emt 0:01:18]} 39. Bxd7 {[%emt 0:00:00]} Rxd7 {[%emt 0:00:07]} 40. Qxd7 {[%emt 0:00:00]} Qxe3+ {[%emt 0:00:13]} 41. Kg2 {[%emt 0:00:30]} Rf8 {[%emt 0:00:05]} 42. Qe7 {[%emt 0:02:30]} Qf3+ {[%emt 0:02:06]} 43. Kh3 {[%emt 0:00:30]} Qf5+ {[%emt 0:00:20]} 44. Kg2 {[%emt 0:00:00]} h6 {[%emt 0:00:24]} 45. Qxc5 {[%emt 0:00:00]} Rd8 {[%emt 0:00:35]} 46. Rf1 {[%emt 0:00:30]} Qe4+ {[%emt 0:00:28]} 47. Kh3 {[%emt 0:01:30]} a6 {[%emt 0:00:23]} 48. Qf2 {[%emt 0:00:30]} ({White should play} 48. Rf8+ $15 Rxf8 49. Qxf8+ Kh7 50. Qf1) 48... Qxa4 {[%emt 0:00:28]} 49. Qe2 {[%emt 0:00:30]} Qd7+ {[%emt 0:00:17]} 50. Kg2 {[%emt 0:00:30]} Qd5+ {[%emt 0:00:20]} 51. Kh3 {[%emt 0:00:30]} a5 {[%emt 0:00:09]} 52. Rf5 {[%emt 0:01:30]} Re8 {[%emt 0:00:17]} 53. Qh5 {[%emt 0:00:30]} Qe6 {[%emt 0:00:18]} 54. g4 $2 {[%emt 0:01:30]} (54. Qg4) 54... Kh7 {[%emt 0:00:58]} (54... e4 $142 55. Rf1 e3) 55. Rf7 {[%emt 0:00:30]} (55. Qf7 $142) 55... e4 {[%emt 0:01:04]} 56. Ra7 {[%emt 0:01:30]} e3 {[%emt 0:00:39]} 57. Qxa5 {[%emt 0:01:30]} e2 {[%emt 0:00:21]} 58. Qc7 {[%emt 0:02:30]} Qe3+ {[%emt 0:00:22]} 59. Kg2 {[%emt 0:00:30]} Qxa7 {[%emt 0:00:20]} 0-1

[Event "29th CRO-chT Junior 2020"]
[Site "Cakovec"]
[Date "2020.07.17"]
[Round "8.20"]
[White "Cecic-Sule, Dino"]
[Black "Dankos, Mislav"]
[Result "1-0"]
[ECO "D02"]
[WhiteElo "1695"]
[BlackElo "1274"]
[Annotator "NA RC"]
[PlyCount "69"]
[EventDate "2020.07.14"]
[EventType "team-tourn"]
[EventCountry "CRO"]
[SourceTitle "playchess.com"]
[Source "ChessBase"]
[SourceQuality "1"]
[TimeControl "5400+30"]

1. d4 {[%emt 0:02:30]} d5 {[%emt 0:00:30]} 2. Nf3 {[%emt 0:00:00]} Nf6 {[%emt 0:00:30]} 3. Bf4 {[%emt 0:00:00]} Bf5 {[%emt 0:01:30]} 4. e3 {[%emt 0:00:00]} Nc6 {[%emt 0:02:30]} 5. c3 {[%emt 0:00:00]} Nh5 {[%emt 0:01:30]} 6. Qb3 {[%emt 0:04:30]} Rb8 {[%emt 0:02:30]} 7. Nbd2 {[%emt 0:01:30]} Nxf4 {[%emt 0:02:30]} 8. exf4 {[%emt 0:00:30]} f6 {[%emt 0:01:30]} 9. Nh4 {[%emt 0:03:30]} Be6 {[%emt 0:01:30]} 10. g3 {[%emt 0:01:30]} Bf7 {[%emt 0:01:30]} 11. Nf5 {[%emt 0:00:30]} e6 {[%emt 0:03:30]} 12. Ne3 {[%emt 0:00:30]} e5 {[%emt 0:07:30]} 13. fxe5 {[%emt 0:01:30]} fxe5 {[%emt 0:00:30]} 14. dxe5 {[%emt 0:02:30]} Nxe5 {[%emt 0:00:00]} 15. Qa4+ {[%emt 0:02:30]} Nc6 {[%emt 0:04:00]} 16. Bg2 {[%emt 0:02:30]} Qd7 {[%emt 0:04:30]} 17. O-O {[%emt 0:02:30]} b5 {[%emt 0:11:30]} 18. Qd1 {[%emt 0:03:30]} Bc5 {[%emt 0:01:30]} 19. Re1 {[%emt 0:01:30]} O-O {[%emt 0:01:30]} 20. Nb3 {[%emt 0:00:00]} Bxe3 {[%emt 0:00:30]} 21. Rxe3 {[%emt 0:00:00]} Ne7 {[%emt 0:02:30]} 22. Qd2 {[%emt 0:09:30]} Ng6 {[%emt 0:07:30]} 23. Rae1 {[%emt 0:01:30]} Qd6 {[%emt 0:01:30]} 24. Qd4 {[%emt 0:03:30]} c6 {[%emt 0:08:30]} 25. f4 {[%emt 0:06:30]} a5 {[%emt 0:09:30]} 26. f5 {[%emt 0:01:30]} Nh8 {[%emt 0:00:30]} 27. Nc5 {[%emt 0:00:30]} Rfe8 {[%emt 0:03:56]} 28. Ne6 {[%emt 0:11:30]} Bxe6 {[%emt 0:00:12]} 29. Rxe6 {[%emt 0:00:00]} Qd7 {[%emt 0:00:57]} 30. Qe5 {[%emt 0:03:00]} Kf8 {[%emt 0:02:56]} 31. f6 {[%emt 0:07:30]} Kf7 {[%emt 0:06:49]} 32. Qh5+ {[%emt 0:02:30]} Ng6 {[%emt 0:00:34]} 33. Re7+ {[%emt 0:00:30]} Kxf6 {[%emt 0:02:04]} 34. Rxd7 {[%emt 0:00:30]} Rxe1+ {[%emt 0:00:16]} 35. Kf2 {[%emt 0:00:30]} 1-0

[Event "29th CRO-chT Junior 2020"]
[Site "Cakovec"]
[Date "2020.07.18"]
[Round "9.4"]
[White "Dankos, Mislav"]
[Black "Novosel, Lovro"]
[Result "0-1"]
[ECO "A48"]
[WhiteElo "1274"]
[BlackElo "1719"]
[Annotator "NA RC"]
[PlyCount "75"]
[EventDate "2020.07.14"]
[EventType "team-tourn"]
[EventCountry "CRO"]
[SourceTitle "playchess.com"]
[Source "ChessBase"]
[SourceQuality "1"]
[TimeControl "5400+30"]

1. d4 {[%emt 0:00:30]} Nf6 {[%emt 0:00:30]} 2. Nf3 {[%emt 0:00:00]} g6 {[%emt 0:00:30]} 3. Bf4 {[%emt 0:01:00]} Bg7 {[%emt 0:00:30]} 4. e3 {[%emt 0:00:30]} O-O {[%emt 0:01:30]} 5. Bd3 {[%emt 0:01:30]} d6 {[%emt 0:01:30]} 6. h3 {[%emt 0:01:30]} c5 {[%emt 0:00:30]} 7. c3 {[%emt 0:00:30]} b6 {[%emt 0:00:30]} 8. O-O {[%emt 0:02:30]} Bb7 {[%emt 0:04:30]} 9. Nbd2 {[%emt 0:03:30]} Nbd7 {[%emt 0:02:30]} 10. Rc1 {[%emt 0:01:30]} Re8 {[%emt 0:13:30]} 11. Bh2 {[%emt 0:10:30]} e5 {[%emt 0:02:30]} 12. dxe5 {[%emt 0:00:30]} dxe5 {[%emt 0:00:30]} 13. e4 {[%emt 0:00:30]} Nh5 {[%emt 0:01:30]} 14. Nc4 {[%emt 0:02:30]} Qc7 {[%emt 0:03:30]} 15. Qc2 {[%emt 0:06:30]} b5 {[%emt 0:02:30]} 16. Ne3 {[%emt 0:06:30]} c4 {[%emt 0:00:30]} 17. Be2 {[%emt 0:00:30]} Nf4 {[%emt 0:00:30]} 18. Bxf4 {[%emt 0:06:30]} exf4 {[%emt 0:00:30]} 19. Nd5 {[%emt 0:00:00]} Bxd5 {[%emt 0:02:30]} 20. exd5 {[%emt 0:01:00]} Nb6 {[%emt 0:00:30]} 21. Rfd1 {[%emt 0:02:30]} Rad8 {[%emt 0:00:30]} 22. Nd4 {[%emt 0:00:30]} Bxd4 {[%emt 0:00:30]} 23. Rxd4 {[%emt 0:00:00]} Rxd5 {[%emt 0:00:30]} 24. Rcd1 {[%emt 0:00:00]} Qe5 {[%emt 0:00:30]} 25. Bf3 {[%emt 0:01:30]} Rxd4 {[%emt 0:00:30]} 26. Rxd4 {[%emt 0:00:00]} Qf6 {[%emt 0:05:30]} 27. Qd2 {[%emt 0:02:00]} Re6 {[%emt 0:09:30]} 28. Rxf4 {[%emt 0:01:30]} Qe7 {[%emt 0:00:00]} 29. g3 {[%emt 0:04:30]} Na4 {[%emt 0:00:00]} 30. Rd4 {[%emt 0:03:30]} Nc5 {[%emt 0:02:30]} 31. Rd8+ {[%emt 0:09:30]} Kg7 {[%emt 0:00:00]} 32. Qd4+ {[%emt 0:00:00]} Qf6 {[%emt 0:02:00]} 33. Qxf6+ {[%emt 0:02:00]} Rxf6 {[%emt 0:00:00]} 34. Rd5 {[%emt 0:00:30]} Nd3 {[%emt 0:00:00]} 35. Kg2 {[%emt 0:01:30]} Ne1+ {[%emt 0:00:30]} 36. Kg1 {[%emt 0:00:30]} Nd3 {[%emt 0:00:30]} 37. Be4 {[%emt 0:00:30]} Nxf2 {[%emt 0:00:30]} 38. Bf3 {[%emt 0:00:30]} 0-1